Cogmind - Beta 9.4 @@@ ROGUE MODE // 2020.03.08 @ 23:54:49 Player: Starwell Result: Destroyed by G-34 Mercenary with Small Laser Performance ------------- Evolutions (1) 500 Regions Visited (3) 600 Robots Destroyed (18) 90 Value Destroyed (562) 562 Prototype IDs (4) 80 Alien Tech Used (0) 0 Bonus (50) 50 TOTAL SCORE: 1882 Bonus ------- Follower Combat Kills 50 Cogmind --------- Core Integrity 0/400 Matter 345/450 Energy 299/300 System Corruption 5% Temperature Cool (6) Movement Core (200) Ox3 Location -9/Storage Parts ------- > --- POWER (1) -------- (None) > --- PROPULSION (2) --- (None) > --- UTILITY (4) ------ Disposable Heat Sink Medium Battery Large Matter Pod > --- WEAPON (2) ------- Advanced Beam Cannon Mini Grenade Launcher > --- INVENTORY (4) ---- Cooled VTOL Module Shield Generator EM Shotgun Peak State ------------ > --- POWER ------------ (None) > --- PROPULSION ------- Armored Wheel Cooled VTOL Module > --- UTILITY ---------- Disposable Heat Sink Large Matter Pod > --- WEAPON ----------- Mini Grenade Launcher Mini Grenade Launcher > --- INVENTORY -------- Medium Battery Large Matter Pod Trap Extractor Mini Grenade Launcher [Rating: 14] Favorites ----------- Power Light Ion Engine Engine Light Ion Engine Propulsion Wheel Treads Improved Treads Wheel Wheel Flight Unit Cooled VTOL Module Utility Small Storage Unit Device Disposable Heat Sink Storage Small Storage Unit Weapon EM Pulse Gun Energy Gun EM Pulse Gun Energy Cannon Advanced Beam Cannon Launcher Mini Grenade Launcher Special Weapon Plasma Cutter Build | -11 -10 -9 -9 ------- Run | Scr Mat Mat Sto Slots Evolved 2 | . . 2 . Power . | . . . . Propulsion . | . . . . Utility 2 | . . 2 . Weapon . | . . . . Parts Attached 31 | 6 3 6 16 Power 2 | 1 1 . . Engine 2 | 1 1 . . Core . | . . . . Reactor . | . . . . Propulsion 6 | 2 . 1 3 Treads 1 | . . . 1 Leg . | . . . . Wheel 4 | 2 . 1 1 Hover . | . . . . Flight 1 | . . . 1 Utility 10 | 1 2 3 4 Device 6 | . 1 3 2 Storage 4 | 1 1 . 2 Processor . | . . . . Hackware . | . . . . Protection . | . . . . Artifact . | . . . . Weapon 13 | 2 . 2 9 Energy Gun 5 | 2 . . 3 Energy Cannon 1 | . . . 1 Ballistic Gun . | . . . . Ballistic Cannon . | . . . . Launcher 5 | . . . 5 Special Weapon 2 | . . 2 . Impact Weapon . | . . . . Slashing Weapon . | . . . . Piercing Weapon . | . . . . Special Melee Weapon . | . . . . Unidentified Prototypes 2 | . . . 2 Parts Lost 10 | . 4 3 3 Power . | . . . . Propulsion 4 | . 1 2 1 Utility 2 | . 1 . 1 Weapon 4 | . 2 1 1 Highest Loss Streak 4 | . 4 3 2 Average Slot Usage (%) 70 | . 94 55 55 Engine 6 | . 14 8 . Wheel 16 | . 27 14 8 Device 10 | . 7 16 10 Storage 13 | . 17 . 15 Energy Gun 11 | . 26 . 3 Launcher 7 | . . . 15 Special Weapon 2 | . . 15 . Naked Turns . | . . . . Heaviest Build 17 | 11 15 17 11 Greatest Support 26 | 20 20 26 12 Greatest Overweight (x) 3 | . 1 1 3 Average Overweight (x) . | . . . . Largest Inventory Capacity 8 | 6 8 4 4 Average Capacity 4 | 4 6 4 4 Most Carried 8 | 4 8 4 4 Average Carried 4 | 2 6 3 3 Final Capacity 6 | 6 4 4 4 Final Carried 4 | 4 4 4 3 Class Distribution -------------------- 100% | Mutant Dominant Class ---------------- Mutant | -10/Materials Mutant | -9/Materials Mutant | -9/Storage Resources | -11 -10 -9 -9 ----------- Run | Scr Mat Mat Sto Matter Collected 920 | 201 79 50 590 Remotely . | . . . . Salvage Created 446 | . 120 50 276 Parts 19 | . 9 . 10 Haulers Intercepted 1 | . . . 1 Recyclers Shooed . | . . . . Parts Field Recycled 3 | . . 3 . Retrieved Matter 12 | . . 12 . Parts Self-Destructed . | . . . . Prevented . | . . . . Kills | -11 -10 -9 -9 ------- Run | Scr Mat Mat Sto Combat Hostiles Destroyed 15 | . 4 1 10 Guns 5 | . 4 . 1 Cannons 1 | . . . 1 AOE 8 | . . . 8 Classes Destroyed 9 | . 3 . 6 Worker 1 | . . . 1 Hauler 1 | . . . 1 Operator 1 | . 1 . . Swarmer 3 | . 3 . . Grunt 6 | . 1 1 4 Brawler 1 | . . . 1 Duelist 1 | . . . 1 Protector 2 | . . . 2 Sentry 2 | . . . 2 Best Kill Streak 6 | . 4 1 6 Combat Bots Only 5 | . 4 1 5 Max Kills in Single Turn 2 | . 1 1 2 Gunslinging . | . . . . Exploded 2 | . . . 2 Melee . | . . . . Uniques/NPCs Destroyed . | . . . . Combat | -11 -10 -9 -9 -------- Run | Scr Mat Mat Sto Damage Taken 1161 | . 384 292 485 Core 489 | . 88 184 217 Absorbed by Shields . | . . . . Core Remaining (%) 82 | 100 64 . . Volleys Fired 54 | . 12 6 36 Largest 2 | . 2 2 2 Hottest 98 | . 80 40 98 Shots Fired 85 | . 24 10 51 Gun 35 | . 24 . 11 Cannon 9 | . . . 9 Launcher 31 | . . . 31 Special 10 | . . 10 . Kinetic . | . . . . Thermal 19 | . . 10 9 Explosive 31 | . . . 31 Electromagnetic 35 | . 24 . 11 Robot Hit Streak 8 | . 3 6 8 Robot Miss Streak 4 | . 3 1 4 Penetration Max . | . . . . Secondary Targets . | . . . . Shots Hit Robots 45 | . 11 9 25 Core Hits 34 | . 5 1 28 Critical Hits 1 | . . 1 . Critical Kills . | . . . . Critical Parts Destroyed 1 | . . 1 . Melee Attacks . | . . . . Impact . | . . . . Slashing . | . . . . Piercing . | . . . . Sneak Attacks . | . . . . Combat Hostiles . | . . . . Follow-up Attacks . | . . . . Damage Inflicted 1666 | . 140 86 1440 Guns 243 | . 140 . 103 Cannons 142 | . . . 142 Explosions 1195 | . . . 1195 Melee . | . . . . Ramming . | . . . . Kinetic . | . . . . Thermal 252 | . . 86 166 Explosive 1171 | . . . 1171 Electromagnetic 243 | . 140 . 103 Impact . | . . . . Slashing . | . . . . Piercing . | . . . . Highest Corruption 5 | . 1 . 5 Average Corruption 4 | . 1 . 5 Corruption Purged . | . . . . Effects 9 | . . . 9 Heat Flow Errors 1 | . . . 1 Energy Discharges 1 | . . . 1 Data Loss (minor) 2 | . . . 2 Data Loss (major) 1 | . . . 1 Misfires 1 | . . . 1 Targeting Errors 2 | . . . 2 Weapon Failures 1 | . . . 1 Overload Shots . | . . . . Overflow Damage 43 | . . 7 36 Projectiles 20 | . . 7 13 Explosions 23 | . . . 23 Melee . | . . . . Knockbacks . | . . . . Impact . | . . . . Kinetic . | . . . . Secondary . | . . . . Self-Inflicted Damage 122 | . . . 122 Shots 5 | . . . 5 Rammed . | . . . . Targets Rammed . | . . . . Kicked . | . . . . Crushed . | . . . . Highest Temperature 114 | . 36 . 114 Average Temperature 28 | . 16 . 40 Received Heat Transfer 270 | . 84 99 87 Siege Activations . | . . . . Robots Corrupted . | . . . . Combat Hostiles . | . . . . Parts Fried . | . . . . Impact Corruptions . | . . . . Robots Melted 1 | . . 1 . Combat Hostiles 1 | . . 1 . Parts Melted 3 | . . 3 . Heat Transferred 605 | . . 296 309 Parts Sabotaged . | . . . . Parts Stolen . | . . . . Parts Stripped . | . . . . Power Chain Reactions 1 | . . . 1 Missiles Intercepted . | . . . . Alert | -11 -10 -9 -9 ------- Run | Scr Mat Mat Sto Peak Influence 364 | . 155 89 364 Average Influence 120 | . 90 71 181 Maximum Alert Level 1 | . . . 1 Low Security (%) 75 | 100 100 100 40 Level 1 24 | . . . 59 Level 2 . | . . . . Level 3 . | . . . . Level 4 . | . . . . Level 5 . | . . . . High Security . | . . . . Max Security . | . . . . Squads Dispatched 6 | . 4 . 2 Investigation 1 | . 1 . . Extermination . | . . . . Reinforcement 3 | . 3 . . Assault 2 | . . . 2 Garrison . | . . . . Intercept . | . . . . Construction Impeded . | . . . . Haulers Reinforced . | . . . . Stealth | -11 -10 -9 -9 --------- Run | Scr Mat Mat Sto Distress Signals 3 | . 2 1 . Communications Jammed . | . . . . Distress Signals . | . . . . Times Spotted 48 | . 20 7 21 Peak Tracking Total 9 | . 8 7 9 Tactical Retreats 4 | . 2 1 1 Traps | -11 -10 -9 -9 ------- Run | Scr Mat Mat Sto Traps Triggered 2 | . 2 . . Indirectly . | . . . . Trap Hack Attempts . | . . . . Triggered . | . . . . Disarmed . | . . . . Reprogrammed . | . . . . Reused . | . . . . Traps Extracted . | . . . . Installed . | . . . . Triggered . | . . . . Machines | -11 -10 -9 -9 ---------- Run | Scr Mat Mat Sto Machines Disabled 6 | . 1 . 5 Max in Single Turn 2 | . 1 . 2 Machines Sabotaged . | . . . . Garrisons Compromised . | . . . . Overloaded Fab Kills . | . . . . Fab Network Shutdowns . | . . . . Hacking | -11 -10 -9 -9 --------- Run | Scr Mat Mat Sto Machines Accessed 8 | . 3 . 5 Terminals 7 | . 2 . 5 Fabricators . | . . . . Repair Stations . | . . . . Recycling Units 1 | . 1 . . Scanalyzers . | . . . . Garrison Access . | . . . . Total Hacks 25 | . 6 . 19 Successful 19 | . 5 . 14 Failed 6 | . 1 . 5 Catastrophic . | . . . . Database Lockouts . | . . . . Manual 17 | . 4 . 13 Terminals 24 | . 5 . 19 Fabricators . | . . . . Repair Stations . | . . . . Recycling Units 1 | . 1 . . Scanalyzers . | . . . . Garrison Access . | . . . . Terminal Hacks 8 | . 2 . 6 Record 2 | . 1 . 1 Prototype ID Bank 1 | . . . 1 Open Door 1 | . . . 1 Branch Access Points 1 | . . . 1 Locate Traps 1 | . 1 . . Dispatch Records 1 | . . . 1 Zone Layout 1 | . . . 1 Fabricator Hacks . | . . . . Repair Station Hacks . | . . . . Recycling Unit Hacks 1 | . 1 . . Retrieve Components 1 | . 1 . . Scanalyzer . | . . . . Garrison Access Hacks . | . . . . Unauthorized Hacks 21 | . 5 . 16 Terminals 10 | . 2 . 8 Track 3 | . . . 3 Botnet 7 | . 2 . 5 Fabricators . | . . . . Repair Stations . | . . . . Recycling Units . | . . . . Scanalyzers . | . . . . Garrison Access . | . . . . Data Cores Recovered 1 | . 1 . . Used . | . . . . Hacking Detections 7 | . 2 . 5 Full Trace Events . | . . . . Feedback Events . | . . . . Feedback Blocked . | . . . . Robot Schematics Acquired . | . . . . Robots Built . | . . . . Matter . | . . . . Time . | . . . . Total Robot Build Rating . | . . . . Part Schematics Acquired . | . . . . Parts Built . | . . . . Matter . | . . . . Time . | . . . . Total Part Build Rating . | . . . . Parts Repaired . | . . . . Time . | . . . . Parts Recycled . | . . . . Recycled Matter . | . . . . Retrieved Matter . | . . . . Retrieved Components 2 | . 2 . . Parts Scanalyzed . | . . . . Part Schematics Acquired . | . . . . Parts Damaged . | . . . . Bothacking | -11 -10 -9 -9 ------------ Run | Scr Mat Mat Sto Used RIF Installer . | . . . . Robots Hacked . | . . . . Non-combat . | . . . . Combat . | . . . . Robot Hacks Applied . | . . . . Relay Couplers Released . | . . . . Robots Rewired . | . . . . Allies Hacked . | . . . . Hacks Repelled . | . . . . Allies | -11 -10 -9 -9 -------- Run | Scr Mat Mat Sto Total Allies 2 | . . . 2 Largest Group 2 | . . . 2 Highest-Rated Group 62 | . . . 62 Highest-Rated Ally 31 | . . . 31 Total Orders . | . . . . Ally Attacks 11 | . . . 11 Total Damage 191 | . . . 191 Kills 2 | . . . 2 Allies Corrupted . | . . . . Allies Melted . | . . . . Intel | -11 -10 -9 -9 ------- Run | Scr Mat Mat Sto Robot Analysis Total . | . . . . Derelict Logs Recovered . | . . . . Drone Launches . | . . . . Drone Recoveries . | . . . . Exploration | -11 -10 -9 -9 ------------- Run | Scr Mat Mat Sto Turns Passed 895 | 47 317 154 377 Spaces Moved 787 | 44 316 135 292 Core 152 | 6 . 82 64 Treads . | . . . . Legs . | . . . . Wheels 635 | 38 316 53 228 Hover . | . . . . Flight . | . . . . Fastest Speed 50 | 50 80 50 50 Average Speed 80 | 75 80 64 87 Slowest Speed 200 | 80 90 90 200 Overloaded Moves . | . . . . Propulsion Burnouts . | . . . . Robots Hopped . | . . . . Cave-ins Triggered 1 | . . . 1 Exploration Rate (%) 26 | 3 52 16 36 Regions Visited 3 Branch Regions 1 Pre-discovered Areas . | . . . . Known Exits Taken . | . . . . Unknown Exits Taken 3 | 1 1 1 . Scrap Searched . | . . . . Spaces Dug 25 | . . . 25 Terrain Destroyed 183 | . . . 183 Melee . | . . . . Projectile 1 | . . . 1 AOE 182 | . . . 182 Actions | -11 -10 -9 -9 --------- Run | Scr Mat Mat Sto Total 954 | 54 359 181 360 Wait 39 | . 10 26 3 Move 784 | 43 315 134 292 Hop . | . . . . Pick Up 21 | 5 10 2 4 Fast Attach 20 | 5 1 6 8 Attach 5 | 1 2 . 2 Detach 4 | . . 2 2 Swap 6 | . . . 6 Drop 21 | . 9 5 7 Fire 54 | . 12 6 36 Melee . | . . . . Ram . | . . . . Kick . | . . . . Crush . | . . . . Escape Stasis . | . . . . Rewire . | . . . . Trap . | . . . . Miscellaneous . | . . . . Route ------- -11/Scrapyard -10/Materials -9/Materials -9/Storage (discovered 1 exit: Rec) History --------- Turn | Location | Event 21 | -11/Scrapyard | Discovered new exit (range 15) 48 | -11/Scrapyard | Entered Materials 305 | -10/Materials | Build established: Mutant 353 | -10/Materials | Discovered new exit (range 16) 365 | -10/Materials | Entered another Materials area 365 | -9/Materials | Evolved 2 slots: Utility x2 394 | -9/Materials | Lost 4 parts (1n1u2w) 469 | -9/Materials | Discovered new exit (range 14) 501 | -9/Materials | Lost 3 parts (2n1w) 519 | -9/Materials | Entered Storage 528 | -9/Storage | Met a pair of Derelict thieves 616 | -9/Storage | Identified exit to Recycling 657 | -9/Storage | Core integrity fell below 50% 672 | -9/Storage | Crushed by falling debris 846 | -9/Storage | Core integrity fell below 20% 896 | -9/Storage | Destroyed by G-34 Mercenary with Small Laser Last Messages --------------- 00864_ The unstable cave ceiling collapses. 00864_ System corrupted: Adv. Beam Cannon targeting data glitched. 00864_ C-30 ARC bursts open, deploying its payload. 00864_ L-31 Rogue unfolds itself. 00864_ G-34 Mercenary unfolds itself. 00866_ The unstable cave ceiling collapses. 00867_ L-31 Rogue destroyed. 00868_ The unstable cave ceiling collapses. 00875_ Destroyed Sml. Laser. 00875_ Destroyed Heat Sink. 00878_ The unstable cave ceiling collapses. 00882_ K-01 Serf collects debris. 00884_ R-06 Scavenger collects Imp. Aluminum Leg. 00887_ The unstable cave ceiling collapses. 00887_ K-01 Serf collects debris. 00888_ The unstable cave ceiling collapses. 00892_ K-01 Serf collects debris. 00892_ R-06 Scavenger collects Med. Matter Pod. 00895_ K-01 Serf collects debris. 00896_ The unstable cave ceiling collapses. Map ----- +----------------------------------------------------+ | | | | | | | | | | | | | | | ???????????????????????????????????????????? | | ???????????????????????????????????????????? | | ???????????????????????????????????????????? | | ???????????????????????????????????????????? | | ##########????????####?????????????????????? | | ##Tgg#????????####?????????????????????? | | # gg#????????## ?????????????????????? | | # gg#????????## ?????????????????????? | | + gg#????????####?????????????????????? | | ## gg#????????####?##+###T?????????????? | | " #################### ????>?????????? | | T #????## ] # ???????????????? | | " #????# # #????????????????? | | % #????# % # #????????????????? | | #???## ut/ ###??????????????? | | ######### [ # # #??????????????? | | ###"T" # ###????????????? | | # ## # ########?????? | | # # @ #?????? | | # ## +?????? | | # "" ### #?????? | | + """#?## # # ## #?????? | | # """#??#### r #?????? | | ## """#?????## " %k #?????? | | ## """#??????### " % ! # +?????? | | ?# #????????##"" ## a #?????? | | ?##########?????????# ] # gg #?????? | | ????????????????????#""" ##? #?????? | | ????????????????????#""" +??? #?????? | | ????????????????????#""" #????# #?????? | | ????????????????????? #?????? ??????? | | ???????????????????????#######?????????????? | | ???????????????????????????????????????????? | | ???????????????????????????????????????????? | | ???????????????????????????????????????????? | | ???????????????????????????????????????????? | | ???????????????????????????????????????????? | | ???????????????????????????????????????????? | | ???????????????????????????????????????????? | | ???????????????????????????????????????????? | | ???????????????????????????????????????????? | | ???????????????????????????????????????????? | | ???????????????????????????????????????????? | +----------------------------------------------------+ Best States ------------- Heat Dissipation 28 Coolant Potential 50 Energy Generation 10 Energy Capacity 300 Matter Stores 450 Matter Capacity 450 Sight Range 16 Terrain Scan Density 10 ECM Strength 1 Evasion (%) 50 Item Schematics ----------------- None Robot Schematics ------------------ None Fabricated ------------ Nothing Alien Tech Used ----------------- None Achievements -------------- None Challenges ------------ None Game ------ Seed MiningFactoryStripper Manual? 0 Play Time 00:45:41 Cumulative 43.8 hours Start 2020.02.28 @ 22:04:44 End 2020.03.08 @ 23:54:49 Sessions 2 Manual Loads 0 Difficulty Rogue Special Mode None Game No. 28 Rogue 28 Adventurer 0 Explorer 0 Win Type - Total 0 Types 0/0/0/0/0/0/0 Lore% 28 Gallery% 43 Achievement% 33 Wizard Run 0 Options --------- ASCII 1 Keyboard 0 Movement Numpad Keybinds 0 Fullscreen 1 Font 24/Smallcaps Map View 76x50 Tactical HUD 1 Map Filters NONE Filters NONE Steam 1 RUN: 914d9820-c7c3-4697-8f98-aaa36da48f9b